Cogmind - Beta 14 *** ADVENTURER MODE // 2024.08.17 @ 20:57:14 Player: Bob Result: Destroyed by RG-U1G(R) with Subdweller Machine Gun Performance ------------- Evolutions (0) 0 Regions Visited (2) 400 Robots Destroyed (24) 120 Value Destroyed (709) 709 Prototype IDs (2) 40 Alien Tech Used (0) 0 Bonus (0) 0 TOTAL SCORE: 1269 Bonus ------- None Cogmind --------- Core Integrity 0/250 Matter 35/300 Energy 29/100 System Corruption 1% Temperature Cool (0) Movement Treading (240) Ox1 Location -10/Subcaves Parts ------- > --- POWER (1) -------- (None) > --- PROPULSION (2) --- Improved Treads > --- UTILITY (2) ------ Large Storage Unit Makeshift Light Armor Plating > --- WEAPON (2) ------- Flamer > --- INVENTORY (15) --- Improved Treads Improved Treads Improved Treads Improved Heat Sink Tractor Beam Light Cannon Light Cannon Slug Cannon Grenade Launcher Mining Laser Peak State ------------ > --- POWER ------------ (None) > --- PROPULSION ------- Improved Treads Improved Treads > --- UTILITY ---------- Large Storage Unit Makeshift Light Armor Plating > --- WEAPON ----------- Slug Cannon Flamer > --- INVENTORY -------- Improved Treads Improved Treads Improved Treads Improved Treads Improved Heat Sink Tractor Beam Light Cannon Light Cannon Grenade Launcher Mining Laser Flamer [Rating: 16] Favorites ----------- Power Ion Engine Engine Ion Engine Propulsion Improved Treads Treads Improved Treads Leg Aluminum Leg Utility Large Storage Unit Storage Large Storage Unit Protection Light Armor Plating Weapon Light Cannon Energy Gun Medium Laser Ballistic Cannon Light Cannon Special Weapon Mining Laser Build | -11 -10 -10 ------- Run | Yrd Mat Sub Slots Evolved . | . . . Power . | . . . Propulsion . | . . . Utility . | . . . Weapon . | . . . Parts Attached 30 | 6 7 17 Power 1 | 1 . . Engine 1 | 1 . . Core . | . . . Reactor . | . . . Propulsion 8 | 2 2 4 Treads 6 | . 2 4 Leg 2 | 2 . . Wheel . | . . . Hover . | . . . Flight . | . . . Utility 5 | 1 3 1 Device . | . . . Storage 3 | 1 2 . Processor . | . . . Hackware . | . . . Protection 2 | . 1 1 Artifact . | . . . Weapon 16 | 2 2 12 Energy Gun 2 | 2 . . Energy Cannon . | . . . Ballistic Gun . | . . . Ballistic Cannon 8 | . 2 6 Launcher . | . . . Special Weapon 6 | . . 6 Impact Weapon . | . . . Slashing Weapon . | . . . Piercing Weapon . | . . . Special Melee Weapon . | . . . Unidentified Prototypes . | . . . Parts Lost 6 | . . 6 Power 1 | . . 1 Propulsion 2 | . . 2 Utility 1 | . . 1 Weapon 2 | . . 2 Highest Loss Streak 2 | . . 2 To Critical Strikes 2 | . . 2 Average Slot Usage (%) 93 | . 92 94 Engine 11 | . 14 10 Treads 21 | . 13 27 Leg 6 | . 14 . Storage 14 | . 14 14 Protection 10 | . 7 12 Energy Gun 1 | . 4 . Ballistic Cannon 21 | . 23 20 Special Weapon 3 | . . 6 Peak Build Rating 16 | 6 11 16 Average Rating 10 | 4 8 11 On Entrance 5 | . 6 11 Naked Turns . | . . . Heaviest Build 38 | 14 34 38 Greatest Support 46 | 20 46 46 Greatest Overweight (x) 1 | . 1 1 Average Overweight (x) . | . . . Largest Inventory Capacity 15 | 8 15 15 Average Capacity 13 | 7 11 15 Most Carried 15 | 4 14 15 Average Carried 10 | . 7 13 Final Capacity 15 | 8 15 15 Final Carried 14 | . 14 10 Class Distribution -------------------- 100% | Mutant Dominant Class ---------------- Mutant | -10/Materials Mutant | -10/Subcaves Resources | -11 -10 -10 ----------- Run | Yrd Mat Sub Matter Collected 864 | 244 214 406 Remotely . | . . . Salvage Created 473 | . 251 222 Parts 23 | . 15 8 Haulers Intercepted 1 | . 1 . Recyclers Shooed . | . . . Parts Field Recycled . | . . . Retrieved Matter . | . . . Parts Self-Destructed 4 | . . 4 Prevented . | . . . Kills | -11 -10 -10 ------- Run | Yrd Mat Sub Combat Hostiles Destroyed 22 | . 10 12 Guns 3 | . 3 . Cannons 19 | . 7 12 Classes Destroyed 6 | . 4 2 Hauler 1 | . 1 . Watcher 1 | . 1 . Swarmer 7 | . 6 1 Grunt 6 | . 4 2 Sentry 1 | . . 1 Subdweller 8 | . . 8 Best Kill Streak 3 | . 3 3 Combat Bots Only 3 | . 3 3 Max Kills in Single Turn 1 | . 1 1 Gunslinging . | . . . Exploded . | . . . Melee . | . . . Uniques/NPCs Destroyed . | . . . Combat | -11 -10 -10 -------- Run | Yrd Mat Sub Hostile Shots Fired 157 | . 34 123 Missed 30 | . 7 23 Damage Taken 1705 | . 201 1504 Core 250 | . 53 197 Absorbed by Shields . | . . . Ignored by Resistances 490 | . 65 425 Core Remaining (%) 100 | 100 . . Volleys Fired 105 | . 24 81 Largest 2 | . 2 2 Hottest 200 | . 100 200 Shots Fired 177 | . 48 129 Gun 16 | . 16 . Cannon 142 | . 32 110 Launcher . | . . . Special 19 | . . 19 Kinetic 142 | . 32 110 Thermal 35 | . 16 19 Explosive . | . . . Electromagnetic . | . . . Robot Hit Streak 13 | . 6 13 Robot Miss Streak 3 | . 3 2 Penetration Max . | . . . Secondary Targets . | . . . Shots Hit Robots 120 | . 30 90 Core Hits 36 | . 14 22 Critical Kills . | . . . Critical Parts Destroyed 2 | . . 2 Critical Strikes 7 | . 3 4 Burn 1 | . 1 . Destroy 3 | . . 3 Blast 3 | . 2 1 Melee Attacks . | . . . Impact . | . . . Slashing . | . . . Piercing . | . . . Sneak Attacks . | . . . Combat Hostiles . | . . . Follow-up Attacks . | . . . Damage Inflicted 1955 | . 487 1468 Guns 115 | . 115 . Cannons 1728 | . 372 1356 Explosions . | . . . Melee . | . . . Ramming . | . . . Kinetic 1728 | . 372 1356 Thermal 227 | . 115 112 Explosive . | . . . Electromagnetic . | . . . Impact . | . . . Slashing . | . . . Piercing . | . . . Highest Corruption 1 | . 1 1 Average Corruption 1 | . 1 1 Corruption Purged . | . . . Corruption Blocked . | . . . Effects 15 | . 1 14 Message Errors 3 | . . 3 Matter Fused 4 | . . 4 Heat Flow Errors 1 | . . 1 Energy Discharges 2 | . . 2 Parts Fused 1 | . . 1 Data Loss (minor) 3 | . . 3 Alerts 1 | . 1 . Overload Shots . | . . . Overflow Damage 45 | . . 45 Projectiles 45 | . . 45 Explosions . | . . . Melee . | . . . Knockbacks 17 | . 9 8 Impact . | . . . Kinetic 14 | . 7 7 Secondary 3 | . 2 1 Self-Inflicted Damage . | . . . Shots . | . . . Rammed . | . . . Targets Rammed . | . . . Kicked . | . . . Crushed . | . . . Highest Temperature 195 | . 195 104 Average Temperature 48 | . 51 25 Received Heat Transfer 381 | . 72 309 Siege Activations . | . . . Robots Corrupted . | . . . Combat Hostiles . | . . . Parts Fried . | . . . Impact Corruptions . | . . . Robots Melted . | . . . Combat Hostiles . | . . . Parts Melted 3 | . 3 . Heat Transferred 1207 | . 407 800 Parts Sabotaged . | . . . Parts Stolen . | . . . Parts Stripped . | . . . Power Chain Reactions . | . . . Alert | -11 -10 -10 ------- Run | Yrd Mat Sub Peak Influence 216 | . 216 . Initial . | . . . Average 40 | . 42 . Maximum Alert Level 1 | . 1 . Low Security (%) 96 | 100 96 . Level 1 3 | . 3 . Level 2 . | . . . Level 3 . | . . . Level 4 . | . . . Level 5 . | . . . High Security . | . . . Max Security . | . . . Squads Dispatched . | . . . Investigation . | . . . Extermination . | . . . Reinforcement . | . . . Assault . | . . . Garrison . | . . . Intercept . | . . . Searches Triggered . | . . . Construction Impeded . | . . . Haulers Reinforced . | . . . Active Scanning Responses . | . . . Cargo Convoy Interrupts . | . . . Stealth | -11 -10 -10 --------- Run | Yrd Mat Sub Distress Signals . | . . . Communications Jammed . | . . . Distress Signals . | . . . Times Spotted 29 | . 13 16 Peak Tracking Total 3 | . 3 2 Tactical Retreats 4 | . 1 3 Traps | -11 -10 -10 ------- Run | Yrd Mat Sub Traps Triggered 1 | . 1 . Indirectly . | . . . Trap Hack Attempts . | . . . Triggered . | . . . Disarmed . | . . . Reprogrammed . | . . . Reused . | . . . Traps Extracted . | . . . Installed . | . . . Triggered . | . . . Machines | -11 -10 -10 ---------- Run | Yrd Mat Sub Machines Disabled . | . . . Max in Single Turn . | . . . Machines Repaired . | . . . Machines Dismantled . | . . . Machines Sabotaged . | . . . Overloaded Fab Kills . | . . . Hacking | -11 -10 -10 --------- Run | Yrd Mat Sub Machines Accessed 5 | . 5 . Terminals 5 | . 5 . Fabricators . | . . . Repair Stations . | . . . Recycling Units . | . . . Scanalyzers . | . . . Garrison Access . | . . . Total Hacks 5 | . 5 . Successful 3 | . 3 . Failed 2 | . 2 . Catastrophic 2 | . 2 . Database Lockouts . | . . . Manual . | . . . Terminals 5 | . 5 . Fabricators . | . . . Repair Stations . | . . . Recycling Units . | . . . Scanalyzers . | . . . Garrison Access . | . . . Terminal Hacks 3 | . 3 . Prototype ID Bank 1 | . 1 . Emergency Access Points 1 | . 1 . Hauler Manifests 1 | . 1 . Fabricator Hacks . | . . . Repair Station Hacks . | . . . Recycling Unit Hacks . | . . . Scanalyzer . | . . . Garrison Access Hacks . | . . . Unauthorized Hacks . | . . . Terminals . | . . . Fabricators . | . . . Repair Stations . | . . . Recycling Units . | . . . Scanalyzers . | . . . Garrison Access . | . . . Data Cores Recovered . | . . . Used . | . . . Hacking Detections 3 | . 3 . Full Trace Events . | . . . Feedback Events . | . . . Feedback Blocked . | . . . Robot Schematics Acquired . | . . . Robots Built . | . . . Authchips . | . . . Time . | . . . Total Robot Build Rating . | . . . Part Schematics Acquired . | . . . Parts Built . | . . . Authchips . | . . . Time . | . . . Total Part Build Rating . | . . . Parts Repaired . | . . . Time . | . . . Parts Recycled . | . . . Recycled Matter . | . . . Retrieved Matter . | . . . Retrieved Components . | . . . Parts Scanalyzed . | . . . Part Schematics Acquired . | . . . Parts Damaged . | . . . Bothacking | -11 -10 -10 ------------ Run | Yrd Mat Sub Used RIF Installer . | . . . Robots Hacked . | . . . Non-combat . | . . . Combat . | . . . Robot Hacks Applied . | . . . Relay Couplers Released . | . . . Fabnet Peak Effective % . | . . . Robots Rewired . | . . . Allies Hacked . | . . . Hacks Repelled . | . . . Allies | -11 -10 -10 -------- Run | Yrd Mat Sub Total Allies . | . . . Largest Group . | . . . Highest-Rated Group . | . . . Highest-Rated Ally . | . . . Total Orders . | . . . Ally Attacks . | . . . Total Damage . | . . . Kills . | . . . Allies Corrupted . | . . . Allies Melted . | . . . Intel | -11 -10 -10 ------- Run | Yrd Mat Sub Robot Analysis Total . | . . . Derelict Logs Recovered 3 | . . 3 Drone Launches . | . . . Drone Recoveries . | . . . Exploration | -11 -10 -10 ------------- Run | Yrd Mat Sub Turns Passed 3582 | 63 1432 2087 Spaces Moved 2071 | 51 897 1123 Core 13 | 13 . . Treads 1532 | . 409 1123 Legs 526 | 38 488 . Wheels . | . . . Hover . | . . . Flight . | . . . Fastest Speed 50 | 50 120 160 Average Speed 152 | 102 146 160 Slowest Speed 240 | 120 240 240 Overloaded Moves . | . . . Propulsion Burnouts . | . . . Robots Hopped . | . . . Cave-ins Triggered . | . . . Exploration Rate (%) 57 | 4 100 67 Regions Visited 2 Branch Regions 1 Pre-discovered Areas . | . . . Known Exits Taken . | . . . Unknown Exits Taken 2 | 1 1 . Scrap Searched 2 | . . 2 Spaces Dug . | . . . Terrain Destroyed 10 | . . 10 Melee . | . . . Projectile 10 | . . 10 AOE . | . . . Terrain Rammed . | . . . Walls Destroyed . | . . . Machines Disabled . | . . . Actions | -11 -10 -10 --------- Run | Yrd Mat Sub Total 2284 | 62 969 1253 Wait 38 | . 19 19 Move 2069 | 50 896 1123 Hop . | . . . Pick Up 31 | 6 19 6 Fast Attach . | . . . Attach 12 | 6 3 3 Detach . | . . . Swap 18 | . 4 14 Drop 11 | . 4 7 Fire 105 | . 24 81 Melee . | . . . Ram . | . . . Kick . | . . . Crush . | . . . Escape Stasis . | . . . Rewire . | . . . Trap . | . . . Miscellaneous . | . . . Route ------- -11/Scrapyard -10/Materials (discovered 5 exits: [*Mat x3] / [*Min] / [*Sub]) -10/Subcaves (discovered 2 exits: [*Mat x2]) History --------- Turn | Location | Event 9 | -11/Scrapyard | Discovered new exit (range 15) 64 | -11/Scrapyard | Entered Materials 319 | -10/Materials | Build established: Mutant 430 | -10/Materials | Discovered new exit (range 15) 669 | -10/Materials | Discovered new exit (range 16) 1037 | -10/Materials | Discovered new exit (range 16) 1312 | -10/Materials | Discovered new exit (range 8) 1483 | -10/Materials | Discovered new exit (range 6) 1496 | -10/Materials | Entered Subcaves 1792 | -10/Subcaves | A swath of the cavern ceiling suddenly collapsed 2389 | -10/Subcaves | Discovered new exit (range 15) 2553 | -10/Subcaves | Learned Materials emergency access door positions 2701 | -10/Subcaves | Discovered new exit (range 15) 2969 | -10/Subcaves | Learned Materials emergency access door positions 3043 | -10/Subcaves | Core integrity fell below 50% 3194 | -10/Subcaves | Shifting Twisted Machinery released Mak. Light Armor Plating 3200 | -10/Subcaves | Shifting Twisted Machinery released Slug Cannon 3548 | -10/Subcaves | Core integrity fell below 20% 3583 | -10/Subcaves | Destroyed by RG-U1G(R) with Subdweller Machine Gun Last Messages --------------- 03195_ SY-CJU(R) affixes Scrap Shield Fragment to Scrap Shield. Slug Cannon falls loose from the Twisted Machinery. 03201_ Acquired 30 matter. 03204_ Acquired 1 matter. 03207_ Acquired 3 matter. 03212_ Acquired Mak. Light Armor Plating. 03222_ Acquired 4 matter. 03223_ Acquired 3 matter. 03227_ Acquired 12 matter. 03239_ Acquired Slug Cannon. 03379_ Acquired 4 matter. 03460_ System corrupted: Component data lost. 03537_ Flamer destroyed. 03559_ GW-GX6(R) destroyed. 03571_ Critical hit (Destroy). 03571_ Imp. Treads destroyed. 03577_ Critical hit (Destroy). 03577_ Imp. Treads destroyed. 03582_ Acquired 30 matter. Map ----- +----------------------------------------------------+ | ##?????#"" ##???????????????????????????????????? | | " ######## #???????????????????????????????????? | | " #### ##??????????????????????????????????? | | # ### #??????????????????????????????????? | | # " ##??????????????????????????????????? | | ## ##"" # #???????????????????????????????????? | | ## #### #####???????????????????????????????????? | | # #?# #########???????????????????????????????? | | ## #?# ## #???????????????????????????????? | | ?# ##?# ## #????????????????????????????????? | | ## #?# #?????????????????????????????????? | | # #?## % #?????????????####### ????????????? | | #### #????????????# ????????????? | | ## #?????????### ???????????? | | #????????# ????????????? | | #### ##???????# ??????????????? | | ???# ##??##### ???????????????? | | ???# #### ## ????????????????? | | ???## #?????????????????? | | ???## #?????????????????? | | ???# #?????????????????? | | ??## #?????????????????? | | ?## ## ???????????????????? | | ## ### #??????????????????????? | | # #?# ## #??????????????????????? | | #### ### @#####??????????????????? | | #?##### ## R #??????????????????? | | ## #?????## #??????????????????? | | ?# #??????### ## ### #??????????????????? | | ?# ##????????############?###??????????????????? | | ?#####???????????????????????????????????????????? | | ?????????????????????????????????????????????????? | | ?????????????????????????????????????????????????? | | ?????????????????????????????????????????????????? | | ?????????????????????????????????????????????????? | | ?????????????????????????????????????????????????? | | ?????????????????????????????????????????????????? | | ?????????????????????????????????????????????????? | | ?????????????????????????????????????????????????? | | ?????????????????????????????????????????????????? | | ?????????????????????????????????????????????????? | | ?????????????????????????????????????????????????? | | ?????????????????????????????????????????????????? | | ?????????????????????????????????????????????????? | | ?????????????????????????????????????????????????? | | | | | | | | | | | +----------------------------------------------------+ Best States ------------- Heat Dissipation 25 Energy Generation 10 Energy Capacity 250 Matter Stores 300 Matter Capacity 300 Sight Range 16 Terrain Scan Density 10 Armor Coverage 150 Resistance: KI 20 Resistance: TH 20 Resistance: EX 20 Resistance: EM 20 Resistance: I 20 Resistance: S 20 Resistance: P 20 Evasion (%) 55 Recoil Reduction 2 Offensive Hacking 10 Item Schematics ----------------- None Robot Schematics ------------------ None Fabricated ------------ Nothing Alien Tech Used ----------------- None Achievements -------------- None Challenges ------------ None Game ------ Seed TimingImprovedMachine Manual? 0 Play Time 00:18:32 Cumulative 203.0 hours Start 2024.08.17 @ 20:42:26 End 2024.08.17 @ 20:57:14 Sessions 1 Manual Loads 0 Difficulty Adventurer Special Mode None Game No. 304 Rogue 241 Adventurer 63 Explorer 0 Win Type - Total 5 Types 2/1/0/2/0/0/0/0/0 Lore% 32 Gallery% 58 Achievement% 55 Wizard Run 0 Options --------- Layout 1 ASCII 0 Keyboard 0 Movement Arrows Keybinds 0 Fullscreen 1 Font 16/SmallcapsGlow Map View 55x38 Zoom Use 0% Tactical HUD 1 Map Filters NONE Filters NONE Steam 1 RUN: 528ac552-d71d-4c29-885c-babf55206ae8